bitfinex/quotes_BTCUSD_20240717
["timestamp","ask_amount","ask_price","bid_price","bid_amount"]
[1721187352314,0.00836,65752.0,65751.0,2.96315562]
[1721187353839,0.00836,65752.0,65751.0,2.97715562]
[1721187354034,0.00836,65752.0,65751.0,3.02715562]
[1721187354704,0.00836,65752.0,65751.0,3.04115562]
[1721187355027,0.07016,65752.0,65751.0,2.25669688]
[1721187355189,0.10056,65752.0,65751.0,1.24416588]
[1721187355577,0.12597957,65752.0,65751.0,0.86530496]
[1721187355705,0.27806557,65752.0,65751.0,0.86530496]
[1721187356296,0.27806557,65752.0,65751.0,0.85130496]
[1721187356648,0.27906557,65752.0,65751.0,0.83730496]
[1721187356924,0.27906557,65752.0,65751.0,0.13730496]
[1721187357094,0.27906557,65752.0,65751.0,0.19666496]
[1721187357295,0.28006557,65752.0,65751.0,0.19666496]
[1721187357494,0.27906557,65752.0,65751.0,0.19666496]
[1721187357703,0.28006557,65752.0,65751.0,0.19666496]
[1721187358234,0.28006557,65752.0,65751.0,0.13730496]
[1721187358412,0.12797957,65752.0,65751.0,0.13732131]
[1721187360479,0.12797957,65752.0,65751.0,0.01102631]
[1721187360641,0.0304,65751.0,65749.0,0.152093]
[1721187360985,0.0304,65751.0,65749.0,0.45628]
[1721187360986,0.0629,65750.0,65749.0,0.45628]
[1721187361132,0.08821185,65750.0,65749.0,0.45628]
[1721187361311,0.08821185,65750.0,65749.0,0.582575]
[1721187361720,0.00836,65752.0,65751.0,0.456265]
[1721187361929,0.00836,65752.0,65751.0,1.04111874]
[1721187362137,0.00836,65752.0,65751.0,2.00463345]
[1721187362984,0.00836,65752.0,65751.0,2.70463345]
[1721187363828,0.00836,65752.0,65751.0,1.93037941]
[1721187364044,0.00836,65752.0,65751.0,2.26532136]
[1721187364198,0.00836,65752.0,65751.0,2.05764893]
[1721187364402,0.00836,65752.0,65751.0,2.05864893]
[1721187364609,0.00836,65752.0,65751.0,2.05664893]
[1721187364811,0.00836,65752.0,65751.0,2.06164893]
[1721187365014,0.00836,65752.0,65751.0,2.25505174]
[1721187365202,0.00836,65752.0,65751.0,2.25105174]
[1721187365582,0.00836,65752.0,65751.0,2.26931998]
[1721187365956,0.00836,65752.0,65751.0,2.26431998]
[1721187366434,0.00836,65752.0,65751.0,2.27231998]
[1721187366814,0.00836,65752.0,65751.0,1.93837941]
[1721187367131,0.00836,65752.0,65751.0,2.28032509]
[1721187367333,0.00836,65752.0,65751.0,2.58450209]
[1721187367535,0.00836,65752.0,65751.0,2.28032509]
[1721187368563,0.00836,65752.0,65751.0,2.26205673]
[1721187368891,0.00836,65752.0,65751.0,2.07265034]
[1721187369237,8e-05,65760.0,65759.0,0.76035]
[1721187369434,0.02497747,65760.0,65759.0,0.87841039]
[1721187369642,0.42712721,65760.0,65759.0,0.8384514]
[1721187369852,0.73126321,65760.0,65759.0,0.71218047]
[1721187370078,1.03539921,65760.0,65759.0,0.71218047]
[1721187370307,1.03539921,65760.0,65759.0,0.7]
[1721187370504,1.10456718,65760.0,65759.0,0.7]
[1721187370673,0.80243118,65760.0,65759.0,0.71217252]
[1721187370874,0.80243118,65760.0,65759.0,0.78338977]
[1721187371083,0.80043118,65760.0,65759.0,0.78338977]
[1721187371475,0.80043118,65760.0,65759.0,0.78438977]
[1721187371476,0.27805921,65760.0,65759.0,0.78438977]
[1721187371681,0.27805921,65760.0,65759.0,0.78338977]
[1721187372205,0.27805921,65760.0,65759.0,0.08338977]
[1721187372206,0.12267747,65760.0,65759.0,0.08338977]
[1721187372366,0.12467747,65760.0,65759.0,0.77352252]
[1721187372571,0.09427747,65760.0,65759.0,0.77352252]
[1721187372983,0.09665775,65760.0,65759.0,0.77452252]
[1721187373678,0.09268427,65760.0,65759.0,0.77352252]
[1721187373889,0.02738427,65760.0,65759.0,0.88128997]
[1721187374121,0.03038427,65760.0,65759.0,1.31270853]
[1721187374296,0.02538473,65760.0,65759.0,1.31070853]
[1721187374451,0.00308,65760.0,65759.0,1.31070853]
[1721187374659,0.00508,65760.0,65759.0,1.31070853]
[1721187374860,0.00208,65760.0,65759.0,1.31070853]
[1721187376105,0.00208,65760.0,65759.0,1.18442997]
[1721187376305,0.00208,65760.0,65759.0,1.31070451]
[1721187376906,0.00308,65760.0,65759.0,1.31070451]
[1721187377108,0.00308,65760.0,65759.0,2.01070451]
[1721187377537,0.00308,65760.0,65759.0,2.07400451]
[1721187377871,0.00208,65760.0,65759.0,2.45584451]
[1721187378114,0.00108,65760.0,65759.0,2.45584451]
[1721187378864,0.00108,65760.0,65759.0,2.45884451]
[1721187379069,0.00108,65760.0,65759.0,1.94822616]
[1721187379272,0.00108,65760.0,65759.0,1.96649173]
[1721187379474,8e-05,65760.0,65759.0,1.75884451]
[1721187379636,8e-05,65760.0,65759.0,1.91722625]
[1721187379893,8e-05,65760.0,65759.0,2.12487046]
[1721187380097,8e-05,65760.0,65759.0,2.11787046]
[1721187380305,8e-05,65760.0,65759.0,2.12487046]
[1721187381138,8e-05,65760.0,65759.0,2.14987046]
[1721187381423,8e-05,65760.0,65759.0,2.14986827]
[1721187382323,8e-05,65760.0,65759.0,1.81595171]
[1721187382458,8e-05,65760.0,65759.0,2.14984426]
[1721187382663,8e-05,65760.0,65759.0,2.13157881]
[1721187382863,8e-05,65760.0,65759.0,2.19984412]
[1721187383181,8e-05,65760.0,65759.0,2.18157881]
[1721187383388,8e-05,65760.0,65759.0,2.19457881]
[1721187383592,8e-05,65760.0,65759.0,2.29457881]
[1721187384757,8e-05,65760.0,65759.0,2.24457881]
[1721187385157,8e-05,65760.0,65759.0,2.26284389]
[1721187385457,8e-05,65760.0,65759.0,2.13659305]
[1721187385696,8e-05,65760.0,65759.0,2.10845624]
[1721187385964,8e-05,65760.0,65759.0,1.91908354]
[1721187386139,8e-05,65760.0,65759.0,1.90081843]
[1721187386340,8e-05,65760.0,65759.0,2.10845764]
[1721187386915,8e-05,65760.0,65759.0,1.91908354]
[1721187387247,8e-05,65760.0,65759.0,2.10845764]
[1721187387491,8e-05,65760.0,65759.0,1.55164354]
[1721187387694,8e-05,65760.0,65759.0,1.45567843]
[1721187389997,8e-05,65760.0,65759.0,1.92815171]
[1721187390187,8e-05,65760.0,65759.0,2.29378116]
[1721187390385,8e-05,65760.0,65759.0,2.31204689]
[1721187391346,8e-05,65760.0,65759.0,2.26204658]
[1721187391584,8e-05,65760.0,65759.0,2.24378116]
[1721187392049,8e-05,65760.0,65759.0,2.29377276]
[1721187392724,8e-05,65760.0,65759.0,2.24377276]
[1721187395305,8e-05,65760.0,65759.0,2.24376307]
[1721187395976,8e-05,65760.0,65759.0,2.29376307]
[1721187396222,8e-05,65760.0,65759.0,2.24376307]
[1721187398363,8e-05,65760.0,65759.0,2.24376488]
[1721187398825,8e-05,65760.0,65759.0,2.29376488]
[1721187400204,8e-05,65760.0,65759.0,2.24376488]
[1721187401349,8e-05,65760.0,65759.0,2.11751961]
[1721187401604,8e-05,65760.0,65759.0,2.24377187]
[1721187402097,8e-05,65760.0,65759.0,2.24377219]
[1721187403254,8e-05,65760.0,65759.0,2.24376956]
[1721187403482,8e-05,65760.0,65759.0,2.29376956]
[1721187404608,8e-05,65760.0,65759.0,2.29375821]
[1721187404783,8e-05,65760.0,65759.0,2.35687903]
[1721187405219,8e-05,65760.0,65759.0,2.5146806]
[1721187405831,8e-05,65760.0,65759.0,3.2146806]
[1721187407234,8e-05,65760.0,65759.0,3.56431263]
[1721187407408,8e-05,65760.0,65759.0,3.5188206]
[1721187407613,8e-05,65760.0,65759.0,4.3229606]
[1721187407811,1e-06,65760.0,65759.0,4.86493325]
[1721187408032,1e-06,65760.0,65759.0,4.68298317]
[1721187408236,0.0001,65775.0,65774.0,1.756619]
[1721187408437,0.0001,65775.0,65774.0,2.63311215]
[1721187408639,0.0001,65775.0,65774.0,2.58311215]
[1721187408825,0.0001,65775.0,65774.0,2.64544373]
[1721187409444,0.0021,65775.0,65774.0,2.86630985]
[1721187409651,0.0041,65775.0,65774.0,3.56630985]
[1721187409826,0.0021,65775.0,65774.0,3.56630985]
[1721187410426,0.0021,65775.0,65774.0,3.40854968]
[1721187410624,0.0021,65775.0,65774.0,3.34544373]
[1721187410837,0.0021,65775.0,65774.0,3.34539678]
[1721187411040,0.0021,65775.0,65774.0,3.29539678]
[1721187411246,0.0021,65775.0,65774.0,3.30739678]
[1721187411825,0.0001,65775.0,65774.0,3.30839678]
[1721187412193,0.0001,65775.0,65774.0,3.33639678]
[1721187412597,0.0001,65775.0,65774.0,2.63639678]
[1721187412801,0.0622,65775.0,65774.0,1.61964404]
[1721187413015,0.0001,65775.0,65774.0,1.61964404]
[1721187413217,0.0001,65775.0,65774.0,1.81964404]
[1721187413851,0.0001,65775.0,65774.0,2.51966694]
[1721187415131,0.0001,65775.0,65774.0,2.02905483]
[1721187415346,0.0001,65775.0,65774.0,1.63972708]
[1721187415347,0.0603,65775.0,65774.0,1.63972708]
[1721187416201,0.0603,65775.0,65774.0,1.94379808]
[1721187416202,0.0001,65775.0,65774.0,1.94379808]
[1721187416408,0.0001,65775.0,65774.0,2.09814765]
[1721187417249,0.0001,65775.0,65774.0,2.08414765]
[1721187417625,0.0001,65775.0,65774.0,2.07014765]
[1721187417837,0.0001,65775.0,65774.0,2.08314765]
[1721187418114,0.0001,65775.0,65774.0,2.07014765]
[1721187418306,0.0001,65775.0,65774.0,2.05714765]
[1721187418524,0.0001,65775.0,65774.0,2.07014765]
[1721187418725,0.0001,65775.0,65774.0,2.05714765]
[1721187419181,0.0001,65775.0,65774.0,2.54160039]
[1721187419380,0.0001,65775.0,65774.0,2.22452939]
[1721187419782,0.0001,65775.0,65774.0,2.42452939]
[1721187419988,0.0001,65775.0,65774.0,2.85326586]
[1721187420161,0.0001,65775.0,65774.0,3.03111278]
[1721187420367,0.0001,65775.0,65774.0,3.17033337]
[1721187421006,0.0001,65775.0,65774.0,3.15733337]
[1721187421212,0.0001,65775.0,65774.0,3.15833337]
[1721187421411,0.0001,65775.0,65774.0,3.20833337]
[1721187421619,0.0001,65775.0,65774.0,3.22233337]
[1721187421862,0.0001,65775.0,65774.0,2.84026237]
[1721187422006,0.0001,65775.0,65774.0,2.85426237]
[1721187422209,0.0001,65775.0,65774.0,2.86826237]
[1721187422416,0.0001,65775.0,65774.0,3.1723316]
[1721187422667,0.0001,65775.0,65774.0,2.8682606]
[1721187423101,0.0001,65775.0,65774.0,2.8045606]
[1721187423672,0.0001,65779.0,65778.0,1.064185]
[1721187424035,0.0001,65779.0,65778.0,2.04146587]
[1721187425298,0.0001,65779.0,65778.0,2.05546587]
[1721187425497,0.0001,65779.0,65778.0,2.06946587]
[1721187425655,0.0001,65779.0,65778.0,2.33728575]
[1721187427336,0.0001,65779.0,65778.0,3.14977349]
[1721187427540,0.0001,65779.0,65778.0,3.33909261]
[1721187428128,0.0001,65779.0,65778.0,3.34186358]
[1721187428331,0.0001,65779.0,65778.0,3.33909261]
[1721187428538,0.0001,65779.0,65778.0,3.36205899]
[1721187428795,0.0001,65779.0,65778.0,4.86205899]
[1721187429139,0.0001,65779.0,65778.0,3.36205899]
[1721187429348,0.025,65780.0,65779.0,1.722264]
[1721187429545,0.025,65780.0,65779.0,3.1696111]
[1721187429818,0.025,65780.0,65779.0,2.46980762]
[1721187430023,0.025,65780.0,65779.0,2.34511039]
[1721187431349,0.025,65780.0,65779.0,2.35911039]
[1721187431553,0.025,65780.0,65779.0,2.59439213]
[1721187431752,0.025,65780.0,65779.0,2.97556493]
[1721187431968,0.025,65780.0,65779.0,2.9124599]
[1721187432110,0.025,65780.0,65779.0,2.72314472]
[1721187432513,0.025,65780.0,65779.0,2.97485968]
[1721187432719,0.025,65780.0,65779.0,3.19485968]
[1721187432919,0.025,65780.0,65779.0,3.4657069]
[1721187433399,0.025,65780.0,65779.0,3.4656633]
[1721187434070,0.00836,65795.0,65779.0,3.4656633]
[1721187434071,0.00836,65795.0,65794.0,0.4]
[1721187434257,0.00836,65795.0,65794.0,3.61222271]
[1721187434489,0.00836,65795.0,65794.0,3.62326287]
[1721187434697,0.00836,65795.0,65794.0,1.88646934]
[1721187434894,0.00836,65795.0,65794.0,2.00115384]
[1721187435021,0.00836,65795.0,65794.0,2.15550341]
[1721187435759,0.00836,65795.0,65794.0,2.16950341]
[1721187435956,0.00836,65795.0,65794.0,2.15550341]
[1721187436207,0.00836,65795.0,65794.0,2.15950341]
[1721187437203,0.00836,65795.0,65794.0,2.17350341]
[1721187437424,0.00836,65795.0,65794.0,2.17950341]
[1721187437599,0.00836,65795.0,65794.0,2.17550341]
[1721187437813,0.00836,65795.0,65794.0,2.04931573]
[1721187437937,0.00836,65795.0,65794.0,2.17551048]
[1721187438807,0.00836,65795.0,65794.0,2.18051048]
[1721187439504,0.00836,65795.0,65794.0,2.08051048]
[1721187440855,0.00836,65795.0,65794.0,1.95431573]
[1721187441065,0.00836,65795.0,65794.0,2.08051235]
[1721187441531,0.00836,65795.0,65794.0,2.46149135]
[1721187442209,0.00836,65795.0,65794.0,2.38449135]
[1721187443999,0.00836,65795.0,65794.0,2.38448172]
[1721187444644,0.00836,65795.0,65794.0,2.36448172]
[1721187445052,0.00836,65795.0,65794.0,2.35948172]
[1721187446083,0.00836,65795.0,65794.0,2.05550272]
[1721187446290,0.00836,65795.0,65794.0,2.06250272]
[1721187446486,0.00836,65795.0,65794.0,2.07150272]
[1721187446806,0.00836,65795.0,65794.0,2.06450272]
[1721187447039,0.00836,65795.0,65794.0,2.07550272]
[1721187447244,0.00836,65795.0,65794.0,1.96131573]
[1721187447469,0.00836,65795.0,65794.0,2.08751153]
[1721187450243,0.00836,65795.0,65794.0,2.08750857]
[1721187450462,0.00836,65795.0,65794.0,1.96131573]
[1721187451216,0.00836,65795.0,65794.0,2.54586932]
[1721187451435,0.00836,65795.0,65794.0,2.24189032]
[1721187451640,0.00836,65795.0,65794.0,2.54586932]
[1721187452048,0.00836,65795.0,65794.0,2.87674303]
[1721187452920,0.00836,65795.0,65794.0,2.86474303]
[1721187453546,0.00836,65795.0,65794.0,2.87774303]
[1721187453764,0.00836,65795.0,65794.0,2.85774303]
[1721187453994,0.00836,65795.0,65794.0,2.85674303]
[1721187454222,0.00836,65795.0,65794.0,2.87072567]
[1721187454666,0.00836,65795.0,65794.0,2.98472567]
[1721187455143,0.00836,65795.0,65794.0,3.00872567]
[1721187455608,0.00836,65795.0,65794.0,2.95872567]
[1721187456081,0.00836,65795.0,65794.0,3.0495683]
[1721187456315,0.00836,65795.0,65794.0,2.95872567]
[1721187456511,0.00836,65795.0,65794.0,4.47272567]
[1721187457139,0.00836,65795.0,65794.0,4.14327647]
[1721187457343,0.00836,65795.0,65794.0,4.45871032]
[1721187457556,0.00836,65795.0,65794.0,4.69350588]
[1721187457982,0.00836,65795.0,65794.0,4.53579626]
[1721187458413,0.00836,65795.0,65794.0,4.47271032]
[1721187458583,0.00836,65795.0,65794.0,4.53579467]
[1721187458846,0.00836,65795.0,65794.0,4.52271032]
[1721187460091,0.00836,65795.0,65794.0,4.47271032]
[1721187460316,0.00836,65795.0,65794.0,4.15727647]
[1721187460519,0.00836,65795.0,65794.0,4.47270358]
[1721187461244,0.00836,65795.0,65794.0,2.97270358]
[1721187461761,0.00836,65795.0,65794.0,3.02270358]
[1721187462545,0.00836,65795.0,65794.0,3.08578862]
[1721187462887,0.00836,65795.0,65794.0,3.38976762]
[1721187463473,0.00836,65795.0,65794.0,3.01125547]
[1721187463678,0.00836,65795.0,65794.0,3.3897655]
[1721187465139,0.00836,65795.0,65794.0,4.72820912]
[1721187465342,1e-06,65795.0,65794.0,4.0502269]
[1721187465748,1e-06,65795.0,65794.0,4.11827338]
[1721187465945,1e-06,65795.0,65794.0,4.0955915]
[1721187466170,1e-06,65795.0,65794.0,4.0502269]
[1721187466334,1e-06,65795.0,65794.0,4.09027338]
[1721187466738,1e-06,65795.0,65794.0,3.92127724]
[1721187466988,1e-06,65795.0,65794.0,4.04743471]
[1721187467189,1e-06,65795.0,65794.0,3.19345571]
[1721187467599,1e-06,65795.0,65794.0,2.90814888]
[1721187467792,0.060801,65795.0,65794.0,2.66268841]
[1721187467970,0.060801,65795.0,65794.0,2.37270941]
[1721187468301,0.060801,65795.0,65794.0,1.4694732]
[1721187468520,0.060801,65795.0,65794.0,1.4834732]
[1721187468825,0.060801,65795.0,65794.0,0.31718663]
[1721187469128,0.060801,65795.0,65794.0,0.62116563]
[1721187469462,0.060801,65795.0,65794.0,0.92514463]
[1721187469694,0.060801,65795.0,65794.0,1.21512363]
[1721187469863,0.060801,65795.0,65794.0,1.21516536]
[1721187470067,1e-06,65795.0,65794.0,2.08107746]
[1721187470907,1e-06,65795.0,65794.0,2.06707746]
[1721187471075,1e-06,65795.0,65794.0,1.15514046]
[1721187471480,0.061101,65795.0,65794.0,1.15514046]
[1721187471716,0.061101,65795.0,65794.0,0.85123572]
[1721187471717,0.116401,65795.0,65794.0,0.85123572]
[1721187471921,0.14218921,65795.0,65794.0,0.85123572]
[1721187472321,0.14218921,65795.0,65794.0,1.00322472]
[1721187472718,0.14218921,65795.0,65794.0,0.85123572]
[1721187472926,0.14223842,65795.0,65794.0,0.85124956]
[1721187473125,0.14223842,65795.0,65794.0,0.15124956]
[1721187473327,0.14223842,65795.0,65794.0,0.15125179]
[1721187474818,0.14223842,65795.0,65794.0,0.30324079]
[1721187475569,0.116401,65795.0,65794.0,0.30324079]
[1721187475782,0.116401,65795.0,65794.0,0.15125179]
[1721187475942,0.1422537,65795.0,65794.0,0.15124977]
[1721187476141,0.1422537,65795.0,65794.0,0.27745946]
[1721187476345,0.1422537,65795.0,65794.0,0.22459492]
[1721187476787,0.0869537,65795.0,65794.0,1.11075161]
[1721187476999,0.0258537,65795.0,65794.0,2.11473061]
[1721187479339,0.0258537,65795.0,65794.0,2.11573061]
[1721187479732,0.0258537,65795.0,65794.0,2.11473061]
[1721187479946,0.0258537,65795.0,65794.0,1.40073061]
[1721187480479,0.0258537,65795.0,65794.0,1.40573061]
[1721187480778,0.0258537,65795.0,65794.0,1.10575161]
[1721187480988,0.0258537,65795.0,65794.0,0.27245946]
[1721187480989,0.0921537,65795.0,65794.0,0.27245946]
[1721187481188,0.1474537,65795.0,65794.0,0.27245946]
[1721187481416,0.1474537,65795.0,65794.0,0.14624977]
[1721187481622,0.1474537,65795.0,65794.0,0.27245552]
[1721187481837,0.1474537,65795.0,65794.0,0.42444452]
[1721187482059,0.1474537,65795.0,65794.0,0.29823877]
[1721187482215,0.1474537,65795.0,65794.0,0.38886175]
[1721187483776,0.1474537,65795.0,65794.0,0.23687275]
[1721187483905,0.1474537,65795.0,65794.0,0.14624977]
[1721187486743,0.1474537,65795.0,65794.0,0.13724977]
[1721187487082,0.1474537,65795.0,65794.0,0.29023877]
[1721187487283,0.1474537,65795.0,65794.0,0.28923877]
[1721187487483,0.0931537,65795.0,65794.0,0.59321777]
[1721187487708,0.0268537,65795.0,65794.0,1.00295443]
[1721187487954,0.0268537,65795.0,65794.0,1.12915867]
[1721187488661,0.0258537,65795.0,65794.0,0.52120067]
[1721187488859,0.0268537,65795.0,65794.0,0.39499643]
[1721187489306,0.0258537,65795.0,65794.0,0.98923877]
[1721187489501,0.0258537,65795.0,65794.0,1.29321777]
[1721187489701,0.0268537,65795.0,65794.0,0.98923877]
[1721187490955,0.0268537,65795.0,65794.0,0.28923877]
[1721187491688,0.0268537,65795.0,65794.0,0.41544553]
[1721187491880,0.0268537,65795.0,65794.0,0.51778827]
[1721187493913,0.0268537,65795.0,65794.0,0.82176727]
[1721187494228,0.0268537,65795.0,65794.0,0.8217665]
[1721187494996,0.001001,65795.0,65794.0,0.69555689]
[1721187495846,0.001001,65795.0,65794.0,1.39555689]
[1721187499491,0.001001,65795.0,65794.0,0.83724614]
[1721187499640,0.056301,65795.0,65794.0,0.83724614]
[1721187500701,0.056301,65795.0,65794.0,0.8372473]
[1721187501285,0.121301,65795.0,65794.0,0.8372473]
[1721187502469,0.73164374,65795.0,65794.0,0.8372473]
[1721187502642,1.03561774,65795.0,65794.0,0.8372473]
[1721187502874,1.06337476,65795.0,65794.0,0.71104016]
[1721187503027,1.03561774,65795.0,65794.0,0.71104016]
[1721187503223,1.03561774,65795.0,65794.0,0.01104016]
[1721187503400,0.152001,65789.0,65785.0,0.152009]
[1721187503607,0.0616,65788.0,65786.0,0.91628089]
[1721187503890,0.0616,65788.0,65787.0,0.12622647]
[1721187504101,0.0616,65788.0,65786.0,0.79005442]
[1721187504316,0.0616,65788.0,65787.0,0.00904869]
[1721187504546,0.0616,65788.0,65787.0,0.13527516]
[1721187504749,0.0616,65788.0,65787.0,0.93392102]
[1721187506611,0.0616,65788.0,65787.0,0.93892102]
[1721187506813,0.0616,65788.0,65787.0,0.93892104]
[1721187507832,0.0616,65788.0,65787.0,0.93992104]
[1721187508263,0.152001,65789.0,65787.0,0.94192104]
[1721187508465,0.152001,65789.0,65788.0,0.20722929]
[1721187508865,0.456003,65789.0,65788.0,0.13528505]
[1721187509333,0.456003,65789.0,65787.0,0.004]
[1721187509334,0.304002,65789.0,65787.0,0.004]
[1721187509539,0.152003,65788.0,65787.0,0.004]
[1721187509756,0.152003,65788.0,65787.0,0.13022844]
[1721187510162,0.152003,65788.0,65787.0,0.12822844]
[1721187510358,0.152003,65788.0,65787.0,0.16411298]
[1721187510801,0.152003,65788.0,65787.0,0.16511298]
[1721187510934,0.456009,65788.0,65787.0,0.16511298]
[1721187511133,0.760015,65788.0,65787.0,0.001]
[1721187511333,0.815315,65788.0,65787.0,0.001]
[1721187511534,1.02979674,65788.0,65787.0,0.001]
[1721187511733,1.33380274,65788.0,65787.0,0.001]
[1721187511932,1.40229888,65788.0,65787.0,0.001]
[1721187512141,1.35680274,65788.0,65787.0,0.001]
[1721187513206,1.62680274,65788.0,65787.0,0.001]
[1721187513528,2.07246775,65788.0,65787.0,0.001]
[1721187513745,2.11893885,65788.0,65787.0,0.001]
[1721187513957,2.21893885,65788.0,65787.0,0.001]
[1721187514714,2.21893885,65788.0,65787.0,0.002]
[1721187515122,2.21893885,65788.0,65787.0,0.001]
[1721187515553,2.21993885,65788.0,65787.0,0.002]
[1721187517100,2.33366977,65788.0,65787.0,0.002]
[1721187518148,2.19210874,65788.0,65787.0,0.002]
[1721187519168,2.28306233,65788.0,65787.0,0.002]
[1721187519593,2.28305909,65788.0,65787.0,0.002]
[1721187521396,2.19210874,65788.0,65787.0,0.002]
[1721187522096,2.33363159,65788.0,65787.0,0.002]
[1721187522297,2.19210874,65788.0,65787.0,0.002]
[1721187522537,2.52395143,65788.0,65787.0,0.002]
[1721187522952,2.00216,65787.0,65786.0,0.05156206]
[1721187523179,0.687951,65782.0,65781.0,0.04994701]
[1721187523383,0.456196,65761.0,65760.0,0.000924]
[1721187523622,0.93630874,65761.0,65760.0,0.000924]
[1721187523825,0.95930874,65761.0,65760.0,0.00919356]
[1721187523941,0.95930874,65761.0,65760.0,0.000924]
[1721187524138,1.26343974,65761.0,65760.0,0.00919356]
[1721187524367,1.26343974,65761.0,65760.0,0.000924]
[1721187524940,1.26343974,65761.0,65760.0,0.00919356]
[1721187525583,1.26343974,65761.0,65760.0,0.000924]
[1721187526270,1.26343974,65761.0,65760.0,0.013924]
[1721187526271,1.26543974,65761.0,65760.0,0.013924]
[1721187527006,1.82987074,65761.0,65760.0,0.013924]
[1721187527254,1.87987074,65761.0,65760.0,0.013924]
[1721187527426,1.88567074,65761.0,65760.0,0.013924]
[1721187527635,1.89367074,65761.0,65760.0,0.008924]
[1721187528058,1.90667074,65761.0,65760.0,0.002924]
[1721187528260,1.91367074,65761.0,65760.0,0.002924]
[1721187528775,1.90667074,65761.0,65760.0,0.002924]
[1721187529512,1.88367074,65761.0,65760.0,0.000924]
[1721187529715,1.89767074,65761.0,65760.0,0.000924]
[1721187534349,2.05202031,65761.0,65760.0,0.000924]
[1721187534789,1.89767074,65761.0,65760.0,0.000924]
[1721187536125,1.92383618,65761.0,65760.0,0.000924]
[1721187538646,1.92385043,65761.0,65760.0,0.000924]
[1721187540680,1.954702,65754.0,65753.0,0.000924]
[1721187540940,2.55543822,65754.0,65753.0,0.000924]
[1721187541176,2.55541624,65754.0,65753.0,0.000924]
[1721187541404,2.55541624,65754.0,65735.0,0.0627]
[1721187541405,1.883378,65747.0,65724.0,0.01196697]
[1721187541628,2.35541745,65747.0,65729.0,0.0792]
[1721187541849,1.335296,65734.0,65724.0,0.157296]
[1721187542066,2.14009145,65734.0,65724.0,0.157296]
[1721187542365,2.16309145,65734.0,65724.0,0.157296]
[1721187542591,2.2098544,65734.0,65724.0,0.092396]
[1721187543062,1.579555,65729.0,65724.0,0.009196]
[1721187543303,1.88309445,65729.0,65724.0,0.009196]
[1721187543996,1.85693674,65729.0,65724.0,0.009196]
[1721187544208,1.8832773,65729.0,65724.0,0.009196]
[1721187544416,1.8942773,65729.0,65724.0,0.009196]
[1721187546114,1.9032773,65729.0,65724.0,0.009196]
[1721187547203,1.87693674,65729.0,65724.0,0.009196]
[1721187547410,1.9032916,65729.0,65724.0,0.009196]
[1721187549097,1.5260126,65729.0,65728.0,0.091096]
[1721187549321,1.3657126,65729.0,65728.0,0.091096]
[1721187549529,0.63079974,65729.0,65728.0,0.1072752]
[1721187550001,0.63079974,65729.0,65728.0,0.091096]
[1721187550216,0.93507874,65729.0,65728.0,0.091096]
[1721187551080,0.63079974,65729.0,65728.0,0.091096]
[1721187551289,0.96151457,65729.0,65728.0,0.091096]
[1721187551716,0.63079974,65729.0,65728.0,0.091096]
[1721187551927,0.93507874,65729.0,65728.0,0.1072752]
[1721187552359,0.96156446,65729.0,65728.0,0.091096]
[1721187552572,0.93507874,65729.0,65728.0,0.21745369]
[1721187552779,0.9615521,65729.0,65728.0,0.091096]
[1721187552983,0.9615521,65729.0,65728.0,0.22461597]
[1721187553194,0.9615521,65729.0,65728.0,0.21745631]
[1721187553409,0.93507874,65729.0,65728.0,0.22461391]
[1721187553607,0.96155209,65729.0,65728.0,0.22461391]
[1721187553838,0.96155209,65729.0,65728.0,0.2541449]
[1721187554255,0.96155209,65729.0,65728.0,0.22461391]
[1721187556352,1.26583109,65729.0,65728.0,0.22461391]
[1721187556808,1.26583109,65729.0,65728.0,0.21745425]
[1721187558879,1.28883109,65729.0,65728.0,0.21745425]
[1721187559736,1.28882751,65729.0,65728.0,0.2174554]
[1721187560969,1.28882751,65729.0,65728.0,0.24625054]
[1721187562198,1.065092,65722.0,65721.0,0.009207]
[1721187562402,1.45624351,65722.0,65721.0,0.009207]
[1721187562603,1.97972613,65722.0,65721.0,0.009207]
[1721187562812,1.95325636,65722.0,65721.0,0.009207]
[1721187563219,2.10760593,65722.0,65721.0,0.009207]
[1721187563431,2.12160593,65722.0,65721.0,0.009207]
[1721187563634,1.96725636,65722.0,65721.0,0.009207]
[1721187564066,1.98125636,65722.0,65721.0,0.009207]
[1721187564271,1.96725636,65722.0,65721.0,0.009207]
[1721187564570,1.98125636,65722.0,65721.0,0.009207]
[1721187564915,1.95308574,65722.0,65721.0,0.009207]
[1721187565504,2.10743531,65722.0,65721.0,0.009207]
[1721187566164,2.12143531,65722.0,65721.0,0.009207]
[1721187566574,2.42574731,65722.0,65721.0,0.009207]
[1721187567185,2.27139774,65722.0,65721.0,0.009207]
[1721187567601,1.96708574,65722.0,65721.0,0.009207]
[1721187569161,1.99536002,65722.0,65721.0,0.009207]
[1721187573650,1.87736002,65722.0,65721.0,0.009207]
[1721187573858,1.92736002,65722.0,65721.0,0.009207]
[1721187574890,1.87736002,65722.0,65721.0,0.009207]
[1721187575332,1.92736002,65722.0,65721.0,0.009207]
[1721187576158,1.41274802,65722.0,65721.0,0.009207]
[1721187576371,1.41274802,65722.0,65721.0,0.1543977]
[1721187576372,0.65284974,65722.0,65721.0,0.1543977]
[1721187576582,0.65284974,65722.0,65721.0,0.145807]
[1721187576802,1.21947374,65722.0,65721.0,0.1525944]
[1721187577011,1.23347374,65722.0,65721.0,0.1525944]
[1721187577219,1.24747374,65722.0,65721.0,0.145807]
[1721187577768,1.40777374,65722.0,65721.0,0.084507]
[1721187577998,1.49477374,65722.0,65721.0,0.009207]
[1721187578401,1.28447374,65722.0,65721.0,0.009207]
[1721187579189,1.33447374,65722.0,65721.0,0.009207]
[1721187579360,1.28447374,65722.0,65721.0,0.009207]
[1721187579699,1.32047374,65722.0,65721.0,0.009207]
[1721187579899,1.48077374,65722.0,65721.0,0.009207]
[1721187580249,1.49507387,65722.0,65721.0,0.009207]
[1721187580441,1.89938587,65722.0,65721.0,0.009207]
[1721187580804,1.88538587,65722.0,65721.0,0.009207]
[1721187581007,1.89938587,65722.0,65721.0,0.009207]
[1721187581207,1.91338587,65722.0,65721.0,0.009207]
[1721187581578,1.92738587,65722.0,65721.0,0.009207]
[1721187582196,1.87738587,65722.0,65721.0,0.009207]
[1721187582400,1.92738587,65722.0,65721.0,0.009207]